{"text_format":"1","workbook":"xlsx","n_sheets":5,"sheets":["Info","Antragstammdaten","Tabelle1","Antragsberechtigung","Tooldaten"],"not_rendered":{"charts":0,"images":6,"macros":1,"external_links":0,"defined_names":7,"comments":1,"pivot_tables":0},"unopened":[],"bounds":{"document_bytes":16777216,"sheet_cells":100000,"rows_first":2000,"rows_last":500,"rows_between":2000,"halvings":0,"cell_chars":16384,"cell_head_chars":4096},"cells_cut":0,"cells_raw":0,"read":"whole","date_system":"1900"}

{"sheet":"Info","index":0,"n_rows":36,"n_cols":3,"rows_kept":36,"cut":false,"hidden":false,"merged":[[2,0,2,1],[28,2,29,3],[7,2,8,4],[14,2,15,4],[16,2,16,4],[17,2,17,4],[18,2,18,4],[23,2,24,4],[26,2,26,4],[4,2,6,4],[11,2,12,4],[30,2,30,4],[0,2,0,3],[1,2,1,3],[32,2,33,3],[32,4,33,4],[19,2,21,4],[25,2,25,4],[27,2,27,4],[31,2,31,4],[9,2,10,4]]}
[null,null,{"$f":"Tooldaten!D5","v":"Tool zur Corona-Überbrückungshilfe Phase 3"}]
[]
[{"$f":"Tooldaten!D6","v":"V1.4"}]
[null,{"$f":"\"Über \"&\"\"\"\"&Tooldaten!D5&\"\"\" \"","v":"Über \"Tool zur Corona-Überbrückungshilfe Phase 3\" "}]
[null,null,"Am 12. Juni 2020 hat die Bundesregierung die Eckpunkte für die „Überbrückungshilfe“ beschlossen und diese nach der 1. und 2. Phase (Förderzeitraum April-August 2020 bzw. September-Dezember 2020) um die 3. Phase (Förderzeitraum November 2020-Juni 2021) verlängert.\nAntragsberechtigt für diese 3. Phase sind folgende Unternehmen:"]
[]
[]
[null,null,"n Größere Unternehmen mit bis zu einem Umsatz von 750 Mio. Euro im Jahr 2020, die mittelbar und unmittelbar Corona-bedingt erhebliche Umsatzausfälle erleiden."]
[]
[null,null,"n Gemeinnützige Unternehmen und Organisationen aus allen Branchen."]
[]
[null,null,"n Soloselbständige und selbständige Angehörige der Freien Berufe im Haupterwerb aller Branchen für den Förderzeitraum November 2020 bis Juni 2021."]
[]
[]
[null,null,"n Unternehmen, die in einem Monat einen Corona-bedingten Umsatzeinbruch von mindestens 30 Prozent im Vergleich zum Referenzmonat im Jahr 2019 erlitten haben. "]
[]
[null,null,"Die Antragsstellung muss von einem vom Antragssteller beauftragten prüfenden Dritten durchgeführt werden. In der "]
[null,null,"FAQ-Liste des Bundes zur Überbrückungshilfe "]
[null,null,"ist definiert, wer dies im Einzelnen ist."]
[null,null,"Das Excel-Tool unterstützt Sie bei der Beantragung der Corona-Überbrückungshilfe für die 3. Phase. Prüfen Sie mit Hilfe der Datei die Antragsvoraussetzungen, und erfassen Sie die Umsatz- und Fixkostenschätzung für die Fördermonate. Profitieren Sie von einer automatischen Berechnung des Fördersatzes und der voraussichtlichen Förderhöhe."]
[]
[]
[null,"Hinweise"]
[null,null,"Zur Definition der antragsrelevanten Größen „Umsatz“ und „Fixkosten“ und zur Berechnung der Förderung beachten Sie die offiziellen Hinweise im Antragsportal. Hintergrundinformationen und eine Anleitung zum Erfassen des Antrags finden Sie im InfoDB-Dokument"]
[]
[null,null,"https://www.datev.de/help-center/documents/1019415"]
[]
[]
[null,null,"Diese Dokumente werden regelmäßig an den aktuellen Informationsstand angepasst. Die hier dargestellte Berechnung erfolgt insoweit unter Vorbehalt."]
[]
[null,null,"Maßgeblich ist die Berechnung auf der Verfahrensplattform für die Überbrückungshilfe "]
[null,null,"(www.ueberbrueckungshilfe-unternehmen.de)."]
[null,null,"Bei der Berechnung der voraussichtlichen Förderhöhe mit dem „Tool zur Corona-Überbrückungshilfe 3. Phase“ findet insbesondere die FAQ-Liste des Bundes zur Überbrückungshilfe Berücksichtigung."]
[]
[null,"Verbundene Unternehmen "]
[null,null,"Für verbundene Unternehmen ist insgesamt nur ein Antrag zu stellen. "]

{"sheet":"Antragstammdaten","index":1,"n_rows":52,"n_cols":5,"rows_kept":52,"cut":false,"hidden":false,"merged":[[2,0,2,1],[0,2,0,3],[1,2,1,3]]}
[null,null,{"$f":"Tooldaten!D5","v":"Tool zur Corona-Überbrückungshilfe Phase 3"}]
[]
[{"$f":"Tooldaten!D6","v":"V1.4"}]
[null,"1. Antragsteller"]
[null,"1.1 Art des Mandats"]
[null,null,"Art des Mandats",null,"*"]
[]
[null,"1.2. Angaben zum Antragsteller"]
[null,null,"Anrede",null,"*"]
[null,null,"Titel"]
[null,null,"Vorname",null,"*"]
[null,null,"Nachname",null,"*"]
[null,null,"Name des Unternehmens",null,"*"]
[null,null,"Rechtsform",null,"*"]
[null,null,"Branche",null,"*"]
[null,null,"Handelsregisternummer"]
[null,null,"Amtsgericht"]
[null,null,"Branchenschlüssel",null,"*"]
[null,null,"Art des Unternehmens",null,"*"]
[]
[null,"1.3. Gemeinnützige Übernachtungsstätte"]
[null,null,"Name der Übernachtungsstätte"]
[null,null,"Straße und Hausnummer"]
[null,null,"Postleitzahl"]
[null,null,"Ort"]
[null,null,"Landkreis"]
[null,null,"Bundesland"]
[]
[null,"1.4. Steuer- und Finanzdaten"]
[null,null,"Umsatzsteuer Id.Nr."]
[null,null,"Steuernummer",null,"*"]
[null,null,"Steuerliche Identifikationsnummer",null,"*"]
[null,null,"Zuständiges Finanzamt",null,"*"]
[]
[null,"1.5. Adresse inländischer Sitz der Geschäftsführung"]
[null,null,"Straße und Hausnummer",null,"*"]
[null,null,"Postleitzahl",null,"*"]
[null,null,"Ort",null,"*"]
[null,null,"Landkreis",null,"*"]
[null,null,"Bundesland",null,"*"]
[]
[null,"1.6. Kontaktdaten"]
[null,null,"Telefon",null,"*"]
[null,null,"Fax",null,"*"]
[null,null,"E-Mail-Adresse",null,"*"]
[]
[null,"1.7. Beim Finanzamt hinterlegte Kontoverbindung"]
[null,null,"Kontoinhaber",null,"*"]
[null,null,"IBAN",null,"*"]
[null,null,"BIC",null,"*"]
[null,null,"Kreditinstitut"]
[null,null,"(mit * markierte Angaben sind im Online-Portal des BMWi verpflichtend anzugeben)"]

{"sheet":"Tabelle1","index":2,"n_rows":79,"n_cols":22,"rows_kept":79,"cut":false,"hidden":false,"merged":[[63,2,63,5],[36,2,36,5],[47,2,47,5],[42,2,42,5],[43,2,43,5],[37,2,37,5],[38,2,38,5],[39,2,39,5],[40,2,40,5],[41,2,41,5],[46,2,46,5],[45,2,45,5],[44,2,44,5],[49,2,49,5],[59,2,59,5],[50,2,50,5],[1,2,1,11],[0,2,0,11],[2,0,2,1],[7,11,7,13],[30,2,30,5],[10,5,10,13],[19,2,19,5],[17,4,17,5],[9,5,9,13],[16,2,16,5],[11,5,11,13],[23,2,23,5],[26,2,26,5],[28,2,28,5],[15,2,15,5],[12,10,12,13],[58,6,58,14],[12,4,12,9],[29,2,29,5],[24,2,24,5],[25,2,25,5],[27,2,27,5],[58,2,58,5],[51,2,51,5],[56,2,56,5],[57,2,57,5],[20,2,20,5],[55,2,55,5],[34,2,35,5],[31,2,31,5],[32,2,32,5],[33,2,33,5]]}
[null,null,{"$f":"Tooldaten!D5","v":"Tool zur Corona-Überbrückungshilfe Phase 3"},null,null,null,null,null,null,null,null,null,null,null,null,null,null,"Auf U57 bis 67 achten"]
[]
[{"$f":"Tooldaten!D6","v":"V1.4"}]
[null,"Antragstellung und Prüfung der Antragsvoraussetzungen"]
[null,null,null,null,null,null,null,null,null,null,null,null,null,null,null,null,0,null,null,null,0]
[null,null,null,null,null,"Beschäftigte zum 31. Dezember 2020 / 29. Februar 2020:      ","keine",null,null,null,null,null,null,null,null,null,null,null,null,null,null,"Regelförderung (ggfs. gekappt max. mtl. 50.000 €)"]
[null,null,null,null,null,null,null,null,null,null,null,null,null,null,null,null,null,null,null,null,null,"Regelförderung (ggfs. gekappt max. mtl. 50.000 €)"]
[null,null,null,null,null,null,null,null,null,null,null,"Antragsnummer:",null,null,null,null,null,null,null,null,null,"Regelförderung (ggfs. gekappt max. mtl. 50.000 €)"]
[]
[null,null,"Ermittlung der Vergleichsumsätze:",null,null,"Zu jedem Fördermonat den gleichen Monat aus dem Jahr 2019 als Vergleichsumsatz"]
[null,null,"Ermittlung der Vergleichsumsätze:",null,null,"Zu jedem Fördermonat den gleichen Monat aus dem Jahr 2019 als Vergleichsumsatz",null,null,null,null,null,null,null,null,null,null,null,"Gründungsdatum:",null,null,{"$f":"V11-T11","v":43586},"2019-05-01"]
[null,null,"Ermittlung der Vergleichsumsätze:",null,null,"Monatlicher Durchschnittsumsatz im Kalenderjahr 2019",null,null,null,null,null,null,null,null,null,null,null,null,null,null,{"$f":"V12-T11","v":43617},"2019-06-01"]
[]
[null,null,null,null,null,null,"November","Dezember","Januar","Februar","März","April","Mai","Juni","Summe",null,null,"Variante:",1,"(1: Zeile 10 relevant, 2: Zeile 11 relevant, 3: Zeile 12 relevant)"]
[null,"1. Berechnung der Antragsberechtigung und Umsätze für den Förderzeitraum",null,null,null,null,null,null,null,null,null,null,null,null,null,null,null,"Novemberhilfe angegeben:",null,null,0,"(0: nein, 1 ja)"]
[null,null,"Umsätze November 2020 bis Juni 2021",null,null,null,null,null,null,null,null,null,null,null,{"$f":"SUM(G16:N16)","v":0},null,null,"Dezemberhilfe angegeben:",null,null,0,"(0: nein, 1 ja)"]
[null,null,"Umsätze November und Dezember 2019 / Januar bis Juni 2019",null,null,null,null,null,null,null,null,null,null,null,{"$f":"SUM(G17:N17)","v":0}]
[null,null,null,null,"oder alternativ: Jahresumsatz 2019:"]
[null,null,"Veränderung der Umsätze in %",null,null,null,{"$f":"AbweichungInProzent(G16,G17)","v":0},0,0,0,0,0,0,0]
[null,null,"Fördersatz (Erstattung der Fixkosten) in %",null,null,null,{"$f":"ErstattungInProzent(G$19,$Q$5)","v":0},{"$f":"ErstattungInProzent(H$19,$Q$5)","v":0},0,0,0,0,0,0]
[null,null,"Eigenkapitalzuschuss in %",null,null,null,{"$f":"IF(AND(G19<=-50,G22>=5),40,IF(AND(G19<=-50,G22=4),35,IF(AND(G19<=-50,G22=3),25,0)))","v":0},0,0,0,0,0,0,0]
[null,null,null,null,null,null,{"$f":"SUM(OR(G19<=-50,Novemberhilfe=1))","v":0},{"$f":"SUM(OR(G19<=-50,Novemberhilfe=1),OR(H19<=-50,Dezemberhilfe=1))","v":0},{"$f":"SUM(OR(G19<=-50,Novemberhilfe=1),OR(H19<=-50,Dezemberhilfe=1),I19<=-50)","v":0},{"$f":"SUM(OR(G19<=-50,Novemberhilfe=1),OR(H19<=-50,Dezemberhilfe=1),I19<=-50,J19<=-50)","v":0},{"$f":"SUM(OR(G19<=-50,Novemberhilfe=1),OR(H19<=-50,Dezemberhilfe=1),I19<=-50,J19<=-50,K19<=-50)","v":0},{"$f":"SUM(OR(G19<=-50,Novemberhilfe=1),OR(H19<=-50,Dezemberhilfe=1),I19<=-50,J19<=-50,K19<=-50,L19<=-50)","v":0},{"$f":"SUM(OR(G19<=-50,Novemberhilfe=1),OR(H19<=-50,Dezemberhilfe=1),I19<=-50,J19<=-50,K19<=-50,L19<=-50,M19<=-50)","v":0},{"$f":"SUM(OR(G19<=-50,Novemberhilfe=1),OR(H19<=-50,Dezemberhilfe=1),I19<=-50,J19<=-50,K19<=-50,L19<=-50,M19<=-50,N19<=-50)","v":0}]
[null,"2. Ermittlung erstattungsfähiger Fixkosten"]
[null,"1.","Mieten und Pachten für Gebäude, Grundstücke und Räumlichkeiten, die in unmittelbarem Zusammenhang mit der Geschäftstätigkeit des Unternehmens stehen.\nKosten für Privaträume sind nicht förderfähig.",null,null,null,null,null,null,null,null,null,null,null,{"$f":"SUM(G24:N24)","v":0}]
[null,"2.","Weitere Mietkosten, insbesondere für Fahrzeuge und Maschinen",null,null,null,null,null,null,null,null,null,null,null,0]
[null,"3.","Zinsaufwendungen für betriebliche Kredite und Darlehen",null,null,null,null,null,null,null,null,null,null,null,0]
[null,"4.","Handelsrechtliche Abschreibungen auf Wirtschaftsgüter des Anlagevermögens in Höhe von 50 % des Abschreibungsbetrages.",null,null,null,null,null,null,null,null,null,null,null,0]
[null,"5.","Finanzierungskostenanteil von Leasingraten",null,null,null,null,null,null,null,null,null,null,null,0]
[null,"6.","Ausgaben für notwendige Instandhaltung, Wartung oder Einlagerung von Anlagevermögen und gemieteten Vermögensgegenständen, einschließlich der EDV ",null,null,null,null,null,null,null,null,null,null,null,0]
[null,"7.","Ausgaben für Elektrizität, Wasser, Heizung und Reinigung",null,null,null,null,null,null,null,null,null,null,null,0]
[null,"8.","Grundsteuern",null,null,null,null,null,null,null,null,null,null,null,{"$f":"SUM(G31:N31)","v":0},null,1]
[null,"9.","Betriebliche Lizenzgebühren",null,null,null,null,null,null,null,null,null,null,null,0]
[null,"10.","Versicherungen, Abonnements und andere feste betriebliche Ausgaben",null,null,null,null,null,null,null,null,null,null,null,0]
[null,"11.","Kosten für prüfende Dritte, die im Rahmen der Beantragung der Corona-Überbrückungshilfe anfallen",null,null,null,null,null,null,null,null,null,null,null,0]
[null,"12.","Personalaufwendungen im Förderzeitraum, die nicht von Kurzarbeitergeld erfasst sind, werden pauschal mit 20% der Fixkosten nach Ziffer 1 bis 11 gefördert",null,null,null,false,false,false,false,false,false,false,false]
[null,null,null,null,null,null,0,0,0,0,0,0,0,0,{"$f":"SUM(G36:N36)","v":0}]
[null,"13.","Kosten für Auszubildende",null,null,null,null,null,null,null,null,null,null,null,0]
[null,"14.","Bauliche Modernisierungs-, Renovierungs- oder Umbaumaßnahmen bis zu 20.000 € pro Monat zur Umsetzung von Hygienekonzepten",null,null,null,null,null,null,null,null,null,null,null,0]
[null,"15.","Marketing- und Werbekosten (max. in Höhe der entsprechenden Ausgaben im Jahre 2019)",null,null,null,null,null,null,null,null,null,null,null,0]
[null,"16.","Provisionen (nur für Reisebranche)",null,null,null,null,null,null,null,null,null,null,null,0]
[null,"17.","Ausfall- und Vorbereitungskosten (nur für Reisebranche oder Veranstaltungs- und Kulturbranche)",null,null,null,null,null,null,null,null,null,null,null,0]
[null,"18.","Warenwertabschreibungen für verderbliche Ware oder Saisonware (nur für Einzelhandel, Hersteller, Großhändler und Gastronomiebetriebe)",null,null,null,null,null,null,null,null,null,null,null,0]
[null,"19.","Kosten für Unternehmen der Pyrotechnikindustrie (nur für Unternehmen der Pyrotechnikindustrie)",null,null,null,null,null,null,null,null,null,null,null,0]
[null,"20.","Lager- und Transportkosten (nur für Unternehmen der Pyrotechnikindustrie)",null,null,null,null,null,null,null,null,null,null,null,0]
[null,"21.","Investitionen für Digitalisierung",null,null,null,null,null,null,null,null,null,null,null,0]
[null,"22.","Anschubhilfe (nur für Reisebranche oder Veranstaltungs- und Kulturbranche)",null,null,null,null,null,null,null,null,null,null,null,0]
[null,"23.","Eigenkapitalzuschuss",null,null,null,{"$f":"SUM(G24:G34)*G21/100","v":0},{"$f":"SUM(H24:H34)*H21/100","v":0},0,0,0,0,0,0,0]
[null,"24.","Ausgaben für Hygienemaßnahmen (FAQ Nr. 16)",null,null,null,null,null,null,null,null,null,null,null,0]
[null,"= erstattungsfähige Fixkosten",null,null,null,null,{"$f":"SUM(G24:G48)","v":0},0,0,0,0,0,0,0]
[null,null,"davon reguläre Fixkosten (Erstattung gemäß errechnetem Fördersatz)",null,null,null,{"$f":"SUM(G24:G39,G45,G47,G48)","v":0},{"$f":"SUM(H24:H39,H45,H47,H48)","v":0},0,0,0,0,0,0]
[null,null,"davon branchenspezifische Fixkosten (Erstattung zu 90%)",null,null,null,{"$f":"SUM(G40:G44,G46)","v":0},{"$f":"SUM(H40:H44,H46)","v":0},0,0,0,0,0,0]
[null,null,"davon Summe der Fixkosten 1 bis 11 (Grundlage für den Eigenkapitalzuschuss)",null,null,null,{"$f":"SUM(G24:G34)","v":0},{"$f":"SUM(H24:H34)","v":0},0,0,0,0,0,0]
[]
[]
[null,"3. Ermittlung der Förderung"]
[]
[null,null,"Erstattung regulärer Fixkosten",null,null,null,{"$f":"SUM(G24:G39,G45,G47,G48)*G20/100","v":0},{"$f":"SUM(H24:H39,H45,H47,H48)*H20/100","v":0},0,0,0,0,0,0,{"$f":"SUM(G57:N57)","v":0}]
[null,null,"Erstattung branchenspezifischer Fixkosten",null,null,null,{"$f":"IF($Q$5=0,0,SUM(G40:G44,G46)*0.9)","v":0},0,0,0,0,0,0,0,{"$f":"SUM(G58:N58)","v":0}]
[]
[null,null,"= rechnerischer Erstattungsbetrag",null,null,null,{"$f":"G57+G58","v":0},0,0,0,0,0,0,0,{"$f":"SUM(G60:N60)","v":0}]
[null,null,"nicht berücksichtigte Fixkosten",null,null,null,{"$f":"NichtBeruecksichtigteFixkosten(G49,G60,G56)","v":0},0,0,0,0,0,0,0]
[null,null,"Erstattungssatz für nicht berücksichtigte Fixkosten in %",null,null,null,{"$f":"IF(Q5<>3,ErstattungNichtBeruecksichtigteFixkosten(G61,G60,G19,G59),0)","v":0},{"$f":"IF(R5<>3,ErstattungNichtBeruecksichtigteFixkosten(H61,H60,H19,H59),0)","v":0},{"$f":"IF(S5<>3,ErstattungNichtBeruecksichtigteFixkosten(I61,I60,I19,I59),0)","v":0},{"$f":"IF(T5<>3,ErstattungNichtBeruecksichtigteFixkosten(J61,J60,J19,J59),0)","v":0},{"$f":"IF(U5<>3,ErstattungNichtBeruecksichtigteFixkosten(K61,K60,K19,K59),0)","v":0},{"$f":"IF(U5<>3,ErstattungNichtBeruecksichtigteFixkosten(L61,L60,L19,L59),0)","v":0},{"$f":"IF(U5<>3,ErstattungNichtBeruecksichtigteFixkosten(M61,M60,M19,M59),0)","v":0},{"$f":"IF(U5<>3,ErstattungNichtBeruecksichtigteFixkosten(N61,N60,N19,N59),0)","v":0}]
[null,null,"zusätzlicher förderfähiger Betrag bei Ausnahmefall",null,null,null,{"$f":"IF(Q5<>3,G61*(G62/100),0)","v":0},{"$f":"IF(R5<>3,H61*(H62/100),0)","v":0},{"$f":"IF(S5<>3,I61*(I62/100),0)","v":0},{"$f":"IF(T5<>3,J61*(J62/100),0)","v":0},{"$f":"IF(U5<>3,K61*(K62/100),0)","v":0},{"$f":"IF(U5<>3,L61*L62/100,0)","v":0},{"$f":"IF(U5<>3,M61*M62/100,0)","v":0},{"$f":"IF(U5<>3,N61*N62/100,0)","v":0},{"$f":"SUM(K63:N63)","v":0}]
[null,"=","Erstattungsfähige Förderung (ggfs. gekappt bei maximal mtl. 1.500.000 €)",null,null,null,{"$f":"ErstattbareFoerderung(G63,G60)","v":0},{"$f":"ErstattbareFoerderung(H63,H60)","v":0},0,0,0,0,0,0,{"$f":"SUM(G64:N64)","v":0}]
[null,"./.","andere anrechenbare Förderungen/Hilfen/Erstattungen",null,null,null,null,null,null,null,null,null,null,null,{"$f":"SUM(G65:N65)","v":0}]
[null,"=","Förderung",null,null,null,{"$f":"IF(G64-G65<0,0,G64-G65)","v":0},{"$f":"IF(H64-H65<0,0,H64-H65)","v":0},{"$f":"IF(I64-I65<0,0,I64-I65)","v":0},{"$f":"IF(J64-J65<0,0,J64-J65)","v":0},{"$f":"IF(K64-K65<0,0,K64-K65)","v":0},{"$f":"IF(L64-L65<0,0,L64-L65)","v":0},0,0,{"$f":"SUM(G66:N66)","v":0}]
[]
[]
[]
[]
[]
[]
[]
[]
[]
[]
[null,null,null,null,null,null,null,null,null,null,null,null,null,null,null,null,1]
[null,null,null,null,null,null,null,null,null,null,null,null,null,null,null,null,1]
[null,null,null,null,null,null,null,null,null,null,null,null,null,null,null,null,1]

{"sheet":"Antragsberechtigung","index":3,"n_rows":32,"n_cols":3,"rows_kept":32,"cut":false,"hidden":false,"merged":[[20,1,20,2]]}
["2. Bestätigung zur Antragsberechtigung"]
["2.1 Erklärung"]
[null,"Der Antragsteller hatte im Jahr 2020 einen Jahresumsatz von nicht mehr als 750 Mio. Euro.","Ja"]
[null,"Der Antragsteller ist als Unternehmen dauerhaft wirtschaftlich am Markt tätig.","Ja"]
[null,"Bei dem Antragsteller handelt es sich nicht um ein öffentliches Unternehmen.","Ja"]
[null,"Der Antragsteller war nicht bereits am 31. Dezember 2019 in Schwierigkeiten gemäß Art. 2 Abs. 18 der Allgemeinen Gruppenfreistellungs-verordnung (Verordnung (EU) Nr. 651/2014).","Ja"]
[null,"Falls nicht zutreffend: Der Antragsteller versichert, die Schwierigkeiten (zwischenzeitlich) wieder überwunden zu haben."]
[null,"Der Einnahmenrückgang steht in Zusammenhang mit der Corona-Pandemie.","Ja"]
[null,"Es handelt sich beim Antragsteller um einen Soloselbständigen bzw. einen Freiberufler.","Nein"]
[null,"Falls zutreffend: Der Antragsteller übt seine selbstständige oder freiberufliche Tätigkeit im Haupterwerb aus."]
[null,"Der Antragsteller ist Klein- oder Kleinstunterneh-men (gemäß Anhang I der Allgemeinen Gruppenfreistellungsverordnung (EU) Nr. 651/2014).","Nein"]
[]
["2.2 Anzahl der Mitarbeiter"]
[null,"Beschäftigte über 30 Stunden und Auszubildende"]
[null,"Beschäftigte bis 30 Stunden"]
[null,"Beschäftigte bis 20 Stunden"]
[null,"Beschäftigte auf 450 Euro-Basis"]
[null,"Gewichtete Summe der Mitarbeiter"]
[]
["2.3 Gründungsdatum"]
[null,"Das Unternehmen wurde vor dem 01.01.2019 gegründet."]
[]
["2.4 Novemberhilfe und Dezemberhilfe"]
[null,"Der Antragsteller hat für November 2020 Novemberhilfe beantragt oder erhalten.","Nein"]
[null,"Der Antragsteller hat für Dezember 2020 Dezemberhilfe beantragt oder erhalten.","Nein"]
[]
["2.5 Branchenbereiche"]
[null,"Der Antragsteller ist in folgenden Branchenbereichen tätig:"]
[null,"- Reisebranche","Ja"]
[null,"- Veranstaltungs- und Kulturbranche","Ja"]
[null,"- Einzelhandel, Großhandel, Hersteller, Gastronomiebetrieb","Ja"]
[null,"- Pyrotechnik","Ja"]

{"sheet":"Tooldaten","index":4,"n_rows":15,"n_cols":5,"rows_kept":15,"cut":false,"hidden":false,"merged":[]}
[]
[]
[]
[]
[null,null,"Tooltitel","Tool zur Corona-Überbrückungshilfe Phase 3"]
[null,null,"Version","V1.4","auch bei frmAntragsberechtigung ändern"]
[]
[]
[null,null,"Ermittlung der Vergleichsumsätze:"]
[null,null,null,"Zu jedem Fördermonat den gleichen Monat aus dem Jahr 2019 als Vergleichsumsatz"]
[null,null,null,"Monatlicher Durchschnittsumsatz 2019"]
[null,null,null,"Monatlicher Durchschnittsumsatz im Kalenderjahr 2019"]
[null,null,null,"Monatlicher Durschschnittsumsatz basierend auf dem Ganzjahresumsatz 2020 aus steuerlicher Erfassung"]
[null,null,null,"Monatlicher Durchschnittsumsatz von Januar und Februar 2020"]
[null,null,null,"Monatlicher Durchschnittsumsatz von Juni bis September 2020"]